bitfinex/quotes_SOLUSD_20250418
["timestamp","ask_amount","ask_price","bid_price","bid_amount"]
[1744996302416,0.03,133.3,133.28,15.10860154]
[1744996303911,0.03,133.3,133.27,15.10860154]
[1744996309856,0.03,133.3,133.26,15.10860154]
[1744996310133,15.13860154,133.3,133.26,15.10860154]
[1744996311034,7.50243829,133.29,133.26,15.10860154]
[1744996313642,7.53187546,133.3,133.26,15.10860154]
[1744996315040,7.53187546,133.3,133.25,14.62]
[1744996315216,7.53187546,133.3,133.27,15.10860154]
[1744996316433,0.03,133.3,133.27,15.10860154]
[1744996316811,0.03,133.3,133.29,15.10860154]
[1744996325936,0.03,133.3,133.29,22.61103983]
[1744996326540,0.03,133.3,133.29,104.03752454]
[1744996326722,0.03,133.31,133.29,104.03752454]
[1744996326922,0.03,133.31,133.3,29.72860154]
[1744996327126,0.03,133.31,133.3,110.72860154]
[1744996327334,0.03,133.31,133.3,118.65696171]
[1744996327627,0.03,133.33,133.32,0.42648471]
[1744996327834,0.03,133.33,133.32,15.53508625]
[1744996328034,0.03,133.34,133.33,26.0]
[1744996328224,0.03,133.34,133.33,122.10860154]
[1744996329947,0.03,133.34,133.33,107.0]
[1744996330251,0.03,133.34,133.33,122.10860154]
[1744996332225,0.03,133.34,133.33,96.10860154]
[1744996333360,0.03,133.34,133.33,15.10860154]
[1744996337535,0.03,133.34,133.31,15.10860154]
[1744996337730,15.10860154,133.33,133.3,95.62]
[1744996337934,15.10860154,133.32,133.3,14.62]
[1744996338841,33.7582504,133.33,133.3,14.62]
[1744996339042,15.10860154,133.31,133.3,14.62]
[1744996339252,7.50131272,133.31,133.3,14.62]
[1744996347461,7.50075007,133.32,133.3,14.62]
[1744996347664,33.7582504,133.31,133.24,14.62]
[1744996347868,15.10860154,133.26,133.24,14.62]
[1744996348048,15.10860154,133.25,133.24,14.62]
[1744996348235,15.10860154,133.25,133.22,0.063]
[1744996349243,15.10860154,133.26,133.22,0.063]
[1744996349550,7.50469043,133.25,133.22,0.063]
[1744996352667,7.50469043,133.25,133.22,15.17160154]
[1744996353646,15.10860154,133.24,133.22,0.063]
[1744996354138,41.37501804,133.25,133.22,0.063]
[1744996355858,44.64964886,133.26,133.22,15.17160154]
[1744996357168,7.50469043,133.25,133.23,15.10860154]
[1744996358054,7.50469043,133.25,133.22,15.17160154]
[1744996359364,7.50469043,133.25,133.23,15.10860154]
[1744996359576,7.50356419,133.27,133.22,0.063]
[1744996359868,7.50356419,133.27,133.25,15.10860154]
[1744996360764,26.25891106,133.29,133.26,15.10860154]
[1744996361061,26.25891106,133.29,133.25,15.10860154]
[1744996361765,26.25891106,133.29,133.26,15.10860154]
[1744996363172,26.25891106,133.29,133.25,15.10860154]
[1744996363351,41.3675126,133.29,133.25,15.10860154]
[1744996364080,26.25891106,133.29,133.25,15.10860154]
[1744996365356,41.3675126,133.29,133.25,15.10860154]
[1744996366783,41.3675126,133.29,133.24,15.10860154]
[1744996369284,41.3675126,133.29,133.22,114.56910014]
[1744996369461,41.3675126,133.29,133.24,15.10860154]
[1744996369662,41.3675126,133.29,133.25,15.10860154]
[1744996373584,7.50187546,133.3,133.28,15.10860154]
[1744996374083,7.50187546,133.3,133.29,15.10860154]
[1744996375084,18.75342357,133.31,133.29,15.10860154]
[1744996375882,18.75342357,133.31,133.28,15.10860154]
[1744996378582,18.75342357,133.31,133.27,15.10860154]
[1744996378783,15.10860154,133.3,133.25,123.70850154]
[1744996378970,15.10860154,133.3,133.26,15.10860154]
[1744996379589,7.50243829,133.29,133.26,15.10860154]
[1744996380591,15.10860154,133.28,133.24,14.7]
[1744996380887,15.10860154,133.27,133.24,14.7]
[1744996381069,15.10860154,133.28,133.24,29.80860154]
[1744996381570,41.36713556,133.29,133.24,29.80860154]
[1744996385787,26.25853402,133.29,133.25,15.10860154]
[1744996387990,41.36713556,133.29,133.25,15.10860154]
[1744996390093,26.25853402,133.29,133.25,15.10860154]
[1744996391088,41.36713556,133.29,133.25,15.10860154]
[1744996391886,26.25853402,133.29,133.25,15.10860154]
[1744996392074,15.10860154,133.3,133.27,15.10860154]
[1744996392075,7.50187546,133.3,133.27,15.10860154]
[1744996392891,7.50187546,133.3,133.26,15.10860154]
[1744996394797,7.50187546,133.3,133.24,129.2050258]
[1744996395174,7.50187546,133.3,133.26,15.10860154]
[1744996400108,33.86233869,133.31,133.24,129.2050258]
[1744996400109,7.50157532,133.31,133.28,15.10860154]
[1744996400287,7.50157532,133.31,133.3,15.10860154]
[1744996400800,7.50098239,133.32,133.3,15.10860154]
[1744996401004,7.50098239,133.32,133.31,15.10860154]
[1744996401894,7.52962501,133.34,133.31,15.10860154]
[1744996402089,7.52962501,133.34,133.29,96.0]
[1744996402090,7.52962501,133.34,133.32,15.10860154]
[1744996402292,7.52962501,133.34,133.31,15.10860154]
[1744996402597,7.52962501,133.34,133.29,96.0]
[1744996402598,7.52962501,133.34,133.32,15.10860154]
[1744996403299,0.03,133.34,133.32,15.10860154]
[1744996404203,0.03,133.34,133.31,15.10860154]
[1744996412315,0.03,133.34,133.3,15.10860154]
[1744996412613,15.10860154,133.32,133.29,15.0]
[1744996412811,15.10860154,133.31,133.29,15.0]
[1744996413511,7.50131272,133.31,133.29,15.0]
[1744996421524,18.75200906,133.32,133.29,15.0]
[1744996421525,26.25275913,133.32,133.29,15.0]
[1744996425728,41.36136067,133.32,133.29,15.0]
[1744996426215,15.10860154,133.31,133.29,15.0]
[1744996427627,15.10860154,133.31,133.26,15.10860154]
[1744996427628,18.64964886,133.29,133.24,14.86]
[1744996427927,15.10860154,133.26,133.24,14.86]
[1744996428106,7.50469043,133.25,133.24,14.86]
[1744996432741,7.50412726,133.26,133.24,14.86]
[1744996432922,7.50412726,133.26,133.24,29.96860154]
[1744996435541,7.50356419,133.27,133.24,14.86]
[1744996436532,22.61216573,133.27,133.24,14.86]
[1744996440446,41.37107621,133.27,133.24,14.86]
[1744996440944,15.10860154,133.25,133.24,14.86]
[1744996441146,15.10860154,133.25,133.23,0.063]
[1744996441334,15.10860154,133.24,133.23,0.063]
[1744996442435,15.10860154,133.25,133.23,0.063]
[1744996442632,7.50525367,133.24,133.23,0.063]
[1744996445853,7.50412726,133.26,133.23,15.17160154]
[1744996446456,7.50412726,133.26,133.25,15.10860154]
[1744996446753,7.50412726,133.26,133.24,15.10860154]
[1744996446951,7.5030012,133.28,133.24,15.10860154]
[1744996447348,41.36910574,133.28,133.23,15.17160154]
[1744996447845,41.36910574,133.28,133.23,0.063]
[1744996448228,41.36910574,133.28,133.23,15.17160154]
[1744996450126,41.36910574,133.28,133.24,15.10860154]
[1744996450327,26.2605042,133.28,133.24,15.10860154]
[1744996452543,41.36910574,133.28,133.24,15.10860154]
[1744996452949,41.36910574,133.28,133.24,29.88860154]
[1744996458055,41.36910574,133.28,133.24,14.78]
[1744996461559,41.36910574,133.28,133.24,29.88860154]
[1744996462956,41.36910574,133.28,133.24,14.78]
[1744996463143,15.10860154,133.26,133.24,14.78]
[1744996464454,7.50469043,133.25,133.24,14.78]
[1744996465154,22.61329197,133.25,133.23,0.063]
[1744996470064,33.86962315,133.26,133.23,0.063]
[1744996470382,22.61216573,133.27,133.23,15.17160154]
[1744996470578,7.50356419,133.27,133.24,15.10860154]
[1744996472386,41.36938933,133.28,133.24,15.10860154]
[1744996473583,26.26078779,133.28,133.24,15.10860154]
[1744996473769,7.5030012,133.28,133.27,15.10860154]
[1744996474287,7.5030012,133.28,133.25,14.78]
[1744996474288,7.5030012,133.28,133.26,15.10860154]
[1744996474482,26.2570105,133.3,133.26,15.10860154]
[1744996474665,41.36561204,133.3,133.26,15.10860154]
[1744996484992,15.10860154,133.28,133.25,14.78]
[1744996485179,15.10860154,133.27,133.25,14.78]
[1744996485690,15.10860154,133.27,133.23,81.063]
[1744996485891,15.10860154,133.27,133.23,0.063]
[1744996486795,7.50412726,133.26,133.23,0.063]
[1744996487289,41.37304697,133.26,133.23,0.063]
[1744996487485,15.10860154,133.25,133.23,0.063]
[1744996488892,7.50525367,133.24,133.23,0.063]
[1744996500980,41.26350407,133.24,133.22,0.063]
[1744996501185,33.7582504,133.23,133.22,0.063]
[1744996502893,41.2640674,133.23,133.22,0.063]
[1744996503898,7.505817,133.23,133.22,0.063]
[1744996505103,7.50525367,133.24,133.22,0.063]
[1744996506287,22.61385521,133.24,133.22,0.063]
[1744996507303,15.10860154,133.23,133.22,0.063]
[1744996507605,22.61385521,133.24,133.22,0.063]
[1744996510515,26.0,133.23,133.22,0.063]
[1744996511606,7.50525367,133.24,133.22,15.17160154]
[1744996512107,7.50525367,133.24,133.22,0.063]
[1744996514106,7.50486377,133.25,133.23,15.10860154]
[1744996514285,7.50356419,133.27,133.24,15.10860154]
[1744996514488,7.50356419,133.27,133.25,15.10860154]
[1744996515505,26.26092785,133.28,133.25,15.10860154]
[1744996516887,26.26092785,133.28,133.24,15.10860154]
[1744996520513,41.36952939,133.28,133.24,15.10860154]
[1744996520704,41.36952939,133.28,133.23,14.64]
[1744996520903,41.36952939,133.28,133.23,29.74860154]
[1744996521209,7.5030012,133.28,133.23,22.1458061]
[1744996521407,7.5030012,133.28,133.24,15.10860154]
[1744996523293,22.61160274,133.28,133.24,15.10860154]
[1744996527099,15.10860154,133.27,133.23,14.64]
[1744996527305,15.10860154,133.26,133.23,14.64]
[1744996529018,7.50469043,133.25,133.23,14.64]
[1744996531118,26.26453809,133.26,133.23,14.64]
[1744996531516,26.26453809,133.26,133.23,29.74860154]
[1744996531730,7.50412726,133.26,133.24,15.10860154]
[1744996532413,7.50412726,133.26,133.23,29.74860154]
[1744996534420,7.50356419,133.27,133.23,29.74860154]
[1744996537097,7.50356419,133.27,133.24,15.10860154]
[1744996537303,26.25683944,133.3,133.26,15.10860154]
[1744996537606,26.25683944,133.3,133.27,15.10860154]
[1744996538342,7.50187546,133.3,133.27,15.10860154]
[1744996539437,7.50187546,133.3,133.26,15.10860154]
[1744996545017,26.25656413,133.3,133.26,15.10860154]
[1744996549538,26.25656413,133.3,133.27,15.10860154]
[1744996550445,26.25656413,133.3,133.26,15.10860154]
[1744996551146,7.50161299,133.31,133.29,15.10860154]
[1744996551443,7.50161299,133.31,133.3,15.10860154]
[1744996551643,26.27915552,133.34,133.28,14.64]
[1744996551847,26.27915552,133.34,133.3,15.10860154]
[1744996552047,41.38775706,133.34,133.3,15.10860154]
[1744996552225,26.27915552,133.34,133.3,15.10860154]
[1744996554054,26.27915552,133.34,133.31,15.10860154]
[1744996554254,7.52962501,133.34,133.31,15.10860154]
[1744996564568,7.52962501,133.34,133.28,95.64]
[1744996564569,41.38728909,133.34,133.28,95.64]
[1744996564767,15.10860154,133.3,133.28,14.64]
[1744996566139,7.50243829,133.29,133.28,14.64]
[1744996567551,18.75394784,133.31,133.28,14.64]
[1744996567860,7.50075007,133.32,133.29,15.10860154]
[1744996568039,7.50075007,133.32,133.3,15.10860154]
[1744996568236,7.50075007,133.32,133.31,15.10860154]
[1744996568452,7.50043578,133.33,133.31,15.10860154]
[1744996568837,7.52989725,133.34,133.32,15.10860154]
[1744996569039,7.52989725,133.34,133.33,15.10860154]
[1744996569251,0.03,133.34,133.33,29.74860154]
[1744996569953,0.03,133.34,133.33,37.24878904]
[1744996570450,0.03,133.34,133.33,37.67527375]
[1744996571038,0.03,133.34,133.33,29.74860154]
[1744996573531,0.03,133.34,133.33,14.64]
[1744996575640,15.13860154,133.34,133.33,14.64]
[1744996575839,41.38728909,133.34,133.3,81.0]
[1744996576158,15.10860154,133.32,133.29,14.62]
[1744996577463,7.50131272,133.31,133.29,14.62]
[1744996580666,7.50131272,133.31,133.29,29.72860154]
[1744996582262,26.25325336,133.32,133.29,14.62]
[1744996582465,41.3618549,133.32,133.29,14.62]
[1744996583664,26.25325336,133.32,133.29,14.62]
[1744996586447,15.10860154,133.31,133.29,14.62]
[1744996586647,15.10860154,133.3,133.25,14.62]
[1744996586960,15.10860154,133.3,133.25,29.72860154]
[1744996587161,15.10860154,133.29,133.25,14.62]
[1744996587755,15.10860154,133.3,133.25,29.72860154]
[1744996588871,26.25853402,133.29,133.25,29.72860154]
[1744996589254,15.10860154,133.27,133.25,14.62]
[1744996591047,7.50412726,133.26,133.25,14.62]
[1744996596072,7.50356247,133.28,133.25,29.72860154]
[1744996596378,7.50356247,133.28,133.26,15.10860154]
[1744996596556,7.50356247,133.28,133.25,29.72860154]
[1744996596762,41.36966701,133.28,133.25,14.62]
[1744996596971,26.26106547,133.28,133.25,14.62]
[1744996598370,26.25656413,133.3,133.27,15.10860154]
[1744996600577,18.75468867,133.3,133.27,15.10860154]
[1744996602173,18.75468867,133.3,133.26,15.10860154]
[1744996602377,33.86329021,133.3,133.26,15.10860154]
[1744996602875,41.36516567,133.3,133.26,15.10860154]
[1744996606673,41.36516567,133.3,133.25,29.72860154]
[1744996606874,40.86516567,133.3,133.25,29.72860154]
[1744996607068,15.10860154,133.28,133.25,14.62]
[1744996609479,7.50356419,133.27,133.25,14.62]
[1744996612398,7.50356419,133.27,133.26,15.10860154]
[1744996613196,7.50356419,133.27,133.25,29.72860154]
[1744996613865,26.25962141,133.29,133.25,29.72860154]
[1744996617591,26.25962141,133.29,133.25,14.62]
[1744996617772,41.36822295,133.29,133.25,14.62]
[1744996620096,15.10860154,133.28,133.25,14.62]
[1744996620279,15.10860154,133.26,133.22,0.063]
[1744996620474,15.10860154,133.25,133.22,0.063]
[1744996620794,18.64964886,133.27,133.23,15.10860154]
[1744996621090,52.25962141,133.29,133.25,15.10860154]
[1744996621292,26.25962141,133.29,133.26,15.10860154]
[1744996626395,26.25962141,133.29,133.25,29.74860154]
[1744996627074,7.50243829,133.29,133.26,15.10860154]
[1744996628897,7.50187546,133.3,133.26,15.10860154]
[1744996631099,7.50187546,133.3,133.28,15.10860154]
[1744996632498,7.50075007,133.32,133.28,15.10860154]
[1744996634998,7.50075007,133.32,133.29,15.10860154]
[1744996636613,26.25088332,133.33,133.29,15.10860154]
[1744996637508,41.35948486,133.33,133.29,15.10860154]
[1744996639299,15.10860154,133.31,133.26,15.10860154]
[1744996640095,33.7582504,133.32,133.27,15.10860154]
[1744996641303,7.50131272,133.31,133.27,15.10860154]
[1744996643186,41.36319608,133.31,133.26,15.10860154]
[1744996643385,15.10860154,133.3,133.25,29.74860154]
[1744996644499,18.75468867,133.3,133.26,15.10860154]
[1744996645200,26.25656413,133.3,133.26,15.10860154]
[1744996645401,26.25656413,133.3,133.28,15.10860154]
[1744996645402,7.50187546,133.3,133.28,15.10860154]
[1744996645604,7.50187546,133.3,133.29,15.10860154]
[1744996646613,18.75193036,133.32,133.29,15.10860154]
[1744996648313,26.25268043,133.32,133.28,29.74860154]
[1744996649625,41.36128197,133.32,133.28,14.64]
[1744996652709,15.10860154,133.31,133.28,14.64]
[1744996653414,7.50187546,133.3,133.28,14.64]
[1744996655797,26.25459454,133.31,133.28,14.64]
[1744996657109,26.25459454,133.31,133.28,29.74860154]
[1744996657413,26.25459454,133.31,133.28,15.10860154]
[1744996658620,18.64964886,133.32,133.28,15.10860154]
[1744996658821,26.25065626,133.33,133.29,15.10860154]
[1744996660321,26.25065626,133.33,133.3,15.10860154]
[1744996660629,7.5001875,133.33,133.32,15.10860154]
[1744996661329,7.5001875,133.33,133.28,142.96510616]
[1744996661530,7.5001875,133.33,133.32,15.10860154]
[1744996662403,7.5001875,133.33,133.31,15.10860154]
[1744996667836,41.3592578,133.33,133.29,15.10860154]
[1744996668236,41.3592578,133.33,133.28,97.63930154]
[1744996669745,15.10860154,133.32,133.28,81.0]
[1744996669942,15.10860154,133.31,133.28,81.0]
[1744996670651,15.10860154,133.29,133.27,14.62]
[1744996670826,63.75159378,133.33,133.24,1.5537]
[1744996670827,15.10860154,133.28,133.24,31.28230154]
[1744996671145,15.10860154,133.29,133.25,15.10860154]
[1744996672559,7.5030012,133.28,133.25,15.10860154]
[1744996674472,7.5030012,133.28,133.24,31.28230154]
[1744996674656,7.5030012,133.28,133.25,15.10860154]
[1744996677844,26.2585935,133.29,133.26,15.10860154]
[1744996678045,7.50215885,133.3,133.28,15.10860154]
[1744996678746,7.50215885,133.3,133.29,15.10860154]
[1744996678944,7.50215885,133.3,133.28,15.10860154]
[1744996679139,18.75376142,133.31,133.28,29.72860154]
[1744996680060,26.25507414,133.31,133.28,29.72860154]
[1744996680457,26.25507414,133.31,133.28,14.62]
[1744996684542,26.25507414,133.31,133.28,29.72860154]
[1744996685239,26.25507414,133.31,133.29,15.10860154]
[1744996685240,7.50131272,133.31,133.29,15.10860154]
[1744996685434,7.50131272,133.31,133.3,15.10860154]
[1744996685949,7.50131272,133.31,133.29,15.10860154]
[1744996686351,26.25104096,133.33,133.3,15.10860154]
[1744996694258,26.25104096,133.33,133.29,15.10860154]
[1744996695864,41.3596425,133.33,133.29,15.10860154]
[1744996697263,15.10860154,133.31,133.28,14.62]
[1744996697454,15.10860154,133.3,133.28,14.62]
[1744996697964,7.50243829,133.29,133.28,14.62]
[1744996699971,41.36713556,133.29,133.24,1.5537]
[1744996700161,15.10860154,133.26,133.22,0.063]
[1744996700347,44.64964886,133.28,133.22,0.063]
[1744996700348,15.10860154,133.24,133.22,0.063]
[1744996702367,7.505817,133.23,133.22,0.063]
[1744996712275,22.61441854,133.23,133.22,0.063]
[1744996713673,22.61385521,133.24,133.22,0.063]
[1744996715876,7.50525367,133.24,133.22,0.063]
[1744996720286,7.50356419,133.27,133.23,15.10860154]
[1744996720475,7.50356419,133.27,133.26,15.10860154]
[1744996721683,7.50243829,133.29,133.26,15.10860154]
[1744996721855,7.50243829,133.29,133.28,15.10860154]
[1744996722262,18.75499855,133.3,133.28,15.10860154]
[1744996724163,18.75499855,133.3,133.27,15.10860154]
[1744996726987,7.50131272,133.31,133.28,15.10860154]
[1744996727190,7.50131272,133.31,133.3,15.10860154]
[1744996729187,7.50131272,133.31,133.29,15.10860154]
[1744996730281,26.25459454,133.31,133.27,15.10860154]
[1744996731189,41.36319608,133.31,133.27,15.10860154]
[1744996732571,26.25459454,133.31,133.27,15.10860154]
[1744996735290,15.10860154,133.3,133.26,29.74860154]
[1744996735672,41.36319608,133.31,133.26,29.74860154]
[1744996748983,41.36319608,133.31,133.27,15.10860154]
[1744996749516,41.36319608,133.31,133.28,15.10860154]
[1744996749517,26.25459454,133.31,133.28,15.10860154]
[1744996749711,7.50099899,133.32,133.3,15.10860154]
[1744996749880,7.50099899,133.32,133.31,15.10860154]
[1744996750086,7.50048347,133.33,133.31,15.10860154]
[1744996752106,7.52962501,133.34,133.31,15.10860154]
[1744996752508,7.52962501,133.34,133.3,15.10860154]
[1744996754811,15.10860154,133.32,133.28,15.10860154]
[1744996754989,15.10860154,133.32,133.27,15.10860154]
[1744996755189,22.60991426,133.31,133.27,15.10860154]
[1744996755691,7.50131272,133.31,133.27,15.10860154]
[1744996756199,26.25459454,133.31,133.27,15.10860154]
[1744996758709,41.36319608,133.31,133.27,15.10860154]
[1744996758897,15.10860154,133.29,133.26,14.64]
[1744996759297,7.5030012,133.28,133.26,14.64]
[1744996759521,22.61160274,133.28,133.26,14.64]
[1744996759693,15.10860154,133.27,133.22,271.883]
[1744996760016,15.10860154,133.27,133.23,15.10860154]
[1744996760807,7.50412726,133.26,133.23,15.10860154]
[1744996762004,7.50412726,133.26,133.24,15.10860154]
[1744996763017,7.50356419,133.27,133.24,15.10860154]
[1744996765121,26.2605042,133.28,133.24,15.10860154]
[1744996767020,26.2605042,133.28,133.25,15.10860154]
[1744996767519,26.2605042,133.28,133.24,15.10860154]
[1744996770613,26.2605042,133.28,133.25,15.10860154]
[1744996775230,7.5030012,133.28,133.25,15.10860154]
[1744996775428,7.5030012,133.28,133.27,15.10860154]
[1744996776131,7.50270325,133.29,133.27,15.10860154]
[1744996777042,59.86089712,133.32,133.27,15.10860154]
[1744996777043,41.36319608,133.31,133.27,15.10860154]
[1744996782731,41.36319608,133.31,133.26,15.10860154]
[1744996789315,22.61103983,133.29,133.25,14.62]
[1744996789520,15.10860154,133.28,133.25,14.62]
[1744996789719,15.10860154,133.27,133.25,14.62]
[1744996790032,15.10860154,133.27,133.22,15.17160154]
[1744996791337,15.10860154,133.27,133.23,15.10860154]
[1744996791528,15.10860154,133.28,133.23,15.10860154]
[1744996792846,7.50356419,133.27,133.23,15.10860154]
[1744996796737,7.50356419,133.27,133.25,15.10860154]
[1744996797134,7.50356419,133.27,133.24,15.10860154]
[1744996798546,7.5030012,133.28,133.24,15.10860154]
[1744996799642,41.36910574,133.28,133.23,15.10860154]
[1744996800545,41.36910574,133.28,133.24,15.10860154]
[1744996803940,7.5030012,133.28,133.27,15.10860154]
[1744996805239,7.5030012,133.28,133.26,15.10860154]
[1744996805446,7.5030012,133.28,133.27,15.10860154]
[1744996806147,26.25707636,133.3,133.26,15.10860154]
[1744996809042,0.03,133.34,133.28,15.10860154]
[1744996809246,0.03,133.34,133.31,15.10860154]
[1744996810249,7.5001875,133.33,133.31,15.10860154]
[1744996811331,7.52962501,133.34,133.31,15.10860154]
[1744996814156,22.63822655,133.34,133.29,15.10860154]
[1744996814360,15.10860154,133.33,133.29,15.10860154]
[1744996815434,7.50075007,133.32,133.29,15.10860154]
[1744996816056,7.50075007,133.32,133.28,15.10860154]
[1744996816853,15.10860154,133.32,133.28,15.10860154]
[1744996819462,15.10860154,133.33,133.28,15.10860154]
[1744996820965,7.50075007,133.32,133.28,15.10860154]
[1744996823967,15.10860154,133.31,133.25,1.6238]
[1744996824168,15.10860154,133.3,133.26,29.72860154]
[1744996824966,15.10860154,133.31,133.26,29.72860154]
[1744996827469,7.50187546,133.3,133.27,15.10860154]
[1744996836671,7.50131272,133.31,133.27,15.10860154]
[1744996838970,7.50131272,133.31,133.3,15.10860154]
[1744996839648,7.5001875,133.33,133.3,15.10860154]
[1744996840958,26.2791791,133.34,133.3,15.10860154]
[1744996841974,41.38778064,133.34,133.29,15.10860154]
[1744996842161,15.10860154,133.31,133.28,14.62]
[1744996842958,7.50187546,133.3,133.28,14.62]
[1744996843271,22.610477,133.3,133.28,14.62]
[1744996843881,7.50187546,133.3,133.28,14.62]
[1744996845080,7.50187546,133.3,133.26,15.10860154]
[1744996847361,7.50187546,133.3,133.27,15.10860154]
[1744996847761,7.50187546,133.3,133.28,15.10860154]
[1744996847962,18.75097167,133.33,133.29,15.10860154]
[1744996848561,33.85957321,133.33,133.28,15.10860154]
[1744996849488,7.50075007,133.32,133.28,15.10860154]
[1744996849877,7.50075007,133.32,133.28,29.72860154]
[1744996855289,7.50075007,133.32,133.29,15.10860154]
[1744996856193,33.85957321,133.33,133.29,15.10860154]
[1744996856989,33.85957321,133.33,133.28,29.72860154]
[1744996857492,41.35976071,133.33,133.28,29.72860154]
[1744996860579,22.60878904,133.33,133.29,15.10860154]
[1744996860776,7.5001875,133.33,133.29,15.10860154]
[1744996862894,15.10860154,133.33,133.29,15.10860154]
[1744996865194,7.50075007,133.32,133.28,29.72860154]
[1744996866988,7.50075007,133.32,133.29,15.10860154]
[1744996871495,7.5001875,133.33,133.29,15.10860154]
[1744996872099,33.88766408,133.34,133.32,15.10860154]
[1744996872100,0.03,133.34,133.32,15.10860154]
[1744996888518,0.03,133.34,133.31,14.62]
[1744996888911,0.03,133.34,133.31,29.72860154]
[1744996889099,0.03,133.34,133.32,15.10860154]
[1744996901844,44.64964886,133.32,133.21,38.14570373]
[1744996902141,7.5030012,133.28,133.23,15.10860154]
[1744996902518,7.5030012,133.28,133.24,15.10860154]
[1744996903131,7.5030012,133.28,133.25,15.10860154]
[1744996903636,7.50187546,133.3,133.27,15.10860154]
[1744996904422,7.50131272,133.31,133.27,15.10860154]
[1744996904938,15.10860154,133.29,133.26,14.64]
[1744996905140,15.10860154,133.3,133.26,14.64]
[1744996905639,15.10860154,133.29,133.26,14.64]
[1744996906015,22.61160274,133.28,133.26,14.64]
[1744996906539,7.5030012,133.28,133.26,14.64]
[1744996907143,22.61160274,133.28,133.26,14.64]
[1744996908939,41.36910574,133.28,133.23,15.10860154]
[1744996909122,15.10860154,133.27,133.22,55.81160154]
[1744996909436,15.10860154,133.27,133.22,29.81160154]
[1744996910231,41.36910574,133.28,133.23,15.10860154]
[1744996911134,41.36910574,133.28,133.22,14.703]
[1744996911539,41.36910574,133.28,133.23,15.10860154]
[1744996913841,41.36910574,133.28,133.24,15.10860154]
[1744996915847,41.36910574,133.28,133.23,15.10860154]
[1744996916847,15.10860154,133.27,133.22,29.81160154]
[1744996919334,7.50412726,133.26,133.22,29.81160154]
[1744996921347,7.50412726,133.26,133.23,15.10860154]
[1744996921846,7.50412726,133.26,133.24,15.10860154]
[1744996922054,7.50412726,133.26,133.25,15.10860154]
[1744996922432,7.5030012,133.28,133.25,15.10860154]
[1744996924747,22.61160274,133.28,133.22,14.703]
[1744996924960,41.36910574,133.28,133.23,15.10860154]
[1744996925129,41.36910574,133.28,133.22,29.81160154]
[1744996925130,15.10860154,133.26,133.22,29.81160154]
[1744996925731,22.6127288,133.26,133.22,29.81160154]
[1744996926057,7.50412726,133.26,133.23,15.10860154]
[1744996927850,7.50356419,133.27,133.23,15.10860154]
[1744996928150,7.50356419,133.27,133.25,15.10860154]
[1744996928653,7.50356419,133.27,133.24,15.10860154]
[1744996929356,26.2605042,133.28,133.24,15.10860154]
[1744996934532,26.2605042,133.28,133.23,14.68]
[1744996934533,15.10860154,133.26,133.23,14.68]
[1744996936255,22.61329197,133.25,133.22,0.063]
[1744996936552,15.10860154,133.24,133.22,0.063]
[1744996938154,22.61441854,133.23,133.22,0.063]
[1744996939454,7.505817,133.23,133.22,0.063]
[1744996940565,15.10860154,133.23,133.22,0.063]
[1744996941762,22.61441854,133.23,133.22,0.063]
[1744996943239,41.2640674,133.23,133.22,0.063]
[1744996943440,41.54839054,133.23,133.22,0.063]
[1744996946146,7.505817,133.23,133.22,0.063]
[1744996947871,7.50525367,133.24,133.22,0.063]
[1744996953858,7.50525367,133.24,133.22,15.17160154]
[1744996954368,7.50469043,133.25,133.22,0.063]
[1744996959379,7.50469043,133.25,133.22,15.17160154]
[1744996960489,7.50469043,133.25,133.22,0.063]
[1744996962858,7.50469043,133.25,133.22,15.17160154]
[1744996963083,15.10860154,133.24,133.22,0.063]
[1744996963354,15.10860154,133.23,133.22,0.063]
[1744996963975,41.37501804,133.25,133.22,0.063]
[1744996965185,15.10860154,133.24,133.22,0.063]
[1744996965683,15.10860154,133.23,133.22,0.063]
[1744996966083,22.61441854,133.23,133.22,0.063]
[1744996968587,7.505817,133.23,133.22,0.063]
[1744996972889,7.50525367,133.24,133.22,0.063]
[1744996973791,22.61385521,133.24,133.22,0.063]
[1744996977981,26.2664165,133.25,133.22,0.063]
[1744996978398,15.10860154,133.24,133.22,0.063]
[1744996978896,26.2664165,133.25,133.22,0.063]
[1744996979073,15.10860154,133.24,133.22,0.063]
[1744996979385,7.505817,133.23,133.22,0.063]
[1744996980504,41.69055211,133.23,133.22,1e-08]
[1744996980677,18.933972,133.22,133.21,1e-08]
[1744996980878,94.61914127,133.22,133.2,1e-08]